[Event "44th Chess Olympiad Open 2022"]
[Site "Chennai"]
[Date "2022.08.03"]
[Round "6.30"]
[White "Al-Subaihi, Khalil"]
[Black "Zacarias, M Ruben D"]
[Result "0-1"]
[WhiteElo "2141"]
[BlackElo "2175"]
[Annotator "TA"]
[PlyCount "92"]
[EventDate "2022.??.??"]
[TimeControl "60"]

{[%evp 19,92,0,8,0,7,-42,-21,-51,-22,-28,-14,-19,-38,-41,38,-4,14,0,22,-1,150,
162,134,-23,-47,-50,-46,-115,-105,-117,-79,-249,-220,-631,-641,-768,-444,-433,
-410,-444,-495,-436,-264,-268,-253,-253,-255,-296,-289,-457,-447,-516,-497,
-562,-562,-533,-511,-503,-497,-483,-480,-621,-484,-657,-671,-853,-802,-787,
-775,-1995,-1895,-1876,-897,-1414,-869]} 1. e4 {[%emt 1:25:03]} c5 {[%emt 0:00:
00]} 2. Nf3 {[%emt 0:00:00]} d6 {[%emt 0:00:35]} 3. d4 {[%emt 0:00:00]} cxd4 {
[%emt 0:00:04]} 4. Nxd4 {[%emt 0:00:00]} Nf6 {[%emt 0:00:07]} 5. Nc3 {[%emt 0:
00:00]} a6 {[%emt 0:00:10]} 6. Bc4 {[%emt 0:00:00]} e6 {[%emt 0:00:21]} 7. Bb3
{[%emt 0:00:08]} b5 {[%emt 0:00:27]} 8. f3 {[%emt 0:00:00]} Be7 {[%emt 0:00:21]
} 9. Be3 {[%emt 0:00:06]} O-O {[%emt 0:00:15]} 10. Qd2 {[%emt 0:00:00]} Bd7 {
[%emt 0:01:57]} (10... Bb7 {with more complications.} 11. Bxe6 fxe6 12. Nxe6
Qc8) 11. g4 {[%emt 0:00:00] B87: Sicilian Scheveningen/Najdorf: 6 Bc4, with
early ...b5.} Nc6 {[%emt 0:09:31]} 12. h4 {[%emt 0:00:00]} (12. Nce2 $11) 12...
Nxd4 {[%emt 0:00:00]} 13. Bxd4 {[%emt 0:00:00] The position is equal.} a5 {
[%emt 0:00:00] Hoping for ...a4.} (13... b4 $5 {[%cal Rb4c3]} 14. Ne2 a5 $11)
14. a4 {[%emt 0:00:00] [#]} bxa4 $146 {[%emt 0:04:37]} ({Predecessor:} 14... b4
15. Ne2 Qc7 16. h5 e5 17. Be3 Be6 18. g5 Nd7 19. Ng3 Nc5 20. Bd5 Bxd5 21. Qxd5
{½-½ (98) Ciornei,D (2136)-Colon Garcia,E (2328) Barcelona 2015}) 15. Nxa4 {
[%emt 0:00:00]} Rb8 {[%emt 0:02:08]} 16. Bc3 {[%emt 0:00:00]} Ra8 {[%emt 0:00:
00]} (16... Bc6 $15) 17. Bd4 {[%emt 0:00:00]} Bxa4 {[%emt 0:29:23]} 18. Bxa4 {
[%emt 0:00:00]} Qc7 {[%emt 0:00:35]} 19. h5 {[%emt 0:00:00]} (19. Qc3 $5 {
[%cal Rc3c7]} Qb8 20. Qd3 $14) 19... h6 $2 {[%emt 0:02:01]} ({Black should play
} 19... d5 $11) 20. g5 $1 $16 {[%emt 0:00:00]} hxg5 {[%emt 0:00:21][%cal Yh6g5,
Yg5g4]} 21. h6 $2 {[%emt 0:00:00]} (21. Qxg5 $16 {h6 is the strong threat.} Ne8
22. Qd2) 21... g6 $11 {[%emt 0:01:16]} 22. h7+ $1 {[%emt 0:00:00]} (22. Qxg5 e5
23. Be3 Nxe4 $1 $17) 22... Kh8 {[%emt 0:00:17]} 23. O-O-O {[%emt 0:00:00]} (23.
Qxg5 e5 24. Be3 Nxe4 $1 $17) (23. Qc3 $1 $15 Qxc3+ 24. Bxc3) 23... e5 {[%emt 0:
04:36]} 24. Be3 {[%emt 0:00:00]} g4 {[%emt 0:03:26]} 25. Qg2 $2 {[%emt 0:00:00]
Now White is beyond hope.} (25. Bg5 $17) 25... Rab8 $19 {[%emt 0:08:19]} (25...
Qc4 $2 26. Bb3 Qb4 27. Bd2 (27. Bg5 $2 a4 $19)) 26. Bg5 $2 {[%emt 0:00:00]} (
26. c3 $2 gxf3 27. Qxf3 Qb7 $19) (26. Rd3) 26... Rb4 {[%emt 0:04:54]} 27. b3 {
[%emt 0:05:36]} gxf3 {[%emt 0:05:55]} 28. Qxf3 {[%emt 0:03:25]} ({Of course not
} 28. Bxf6+ Bxf6 29. Qxf3 Bg5+ 30. Kb1 Rxa4) 28... Nxe4 {[%emt 0:00:00]} 29.
Bh6 {[%emt 0:01:51][%cal Ya4c6]} Rc8 {[%emt 0:00:00][%csl Gc8][%cal Rc7c2]} 30.
Rh2 {[%emt 0:03:14]} Qc3 {[%emt 0:00:00] Against Bc6} 31. Qxc3 {[%emt 0:03:05]}
Nxc3 $40 {[%emt 0:00:00] Black goes for the king. Chess con chili.} 32. Bd7 {
[%emt 0:00:05]} Rd8 {[%emt 0:00:00]} ({Much less strong is} 32... Nxd1 33. Bxc8
Rh4 34. Rxh4 Bxh4 35. Kxd1 $16) 33. Rdh1 {[%emt 0:01:22]} Rbb8 {[%emt 0:02:22]}
(33... Rxd7 $2 {[#] gets mated.} 34. Bg7+ $1 Kxg7 35. h8=Q#) 34. Bc6 {[%emt 0:
00:00]} (34. Kb2 $142) 34... d5 {[%emt 0:00:00][%cal Yd6d5,Yd5d4] Black is
clearly winning.} 35. Kb2 {[%emt 0:00:53]} d4 {[%emt 0:01:17]} 36. Rf2 {
[%emt 0:02:11]} f6 {[%emt 0:00:00]} 37. Bd2 {[%emt 0:00:43]} Rdc8 {[%emt 0:00:
00]} 38. Bd7 {[%emt 0:00:58]} Rc7 {[%emt 0:00:00]} 39. Be6 {[%emt 0:00:16]} a4
{[%emt 0:03:35] aiming for ...axb3.} 40. Rfh2 {[%emt 0:00:34]} Ne4 {[%emt 0:00:
00] And now ...a3+ would win.} 41. Bh6 {[%emt 0:30:24]} Bb4 {[%emt 0:01:48]}
42. Bd5 {[%emt 0:00:00]} Bc3+ {[%emt 0:14:49]} 43. Kb1 {[%emt 0:00:00]} Nc5 {
[%emt 0:00:39] Threatens to win with ...a3.} 44. Ka2 {[%emt 0:00:00]} axb3+ {
[%emt 0:00:46]} 45. cxb3 {[%emt 0:00:00]} Ra7+ {[%emt 0:00:45]} 46. Kb1 {
[%emt 0:00:08]} d3 {[%emt 0:00:08] Weighted Error Value: White=0.64/Black=0.40}
0-1

[Event "44th Chess Olympiad Open 2022"]
[Site "Chennai"]
[Date "2022.08.03"]
[Round "6.31"]
[White "Meier, Georg"]
[Black "Tran, Thanh Tu"]
[Result "1/2-1/2"]
[WhiteElo "2613"]
[BlackElo "2375"]
[Annotator "TA"]
[PlyCount "58"]
[EventDate "2022.??.??"]
[TimeControl "60"]

{[%evp 18,58,0,1,2,0,0,0,0,-15,-22,-19,-21,-24,-20,-24,-6,-29,-21,-36,-18,-2,
-20,-23,0,0,0,-20,18,0,0,0,0,0,0,0,13,0,0,0,10,0,29]} 1. Nf3 {[%emt 0:00:03]}
Nf6 {[%emt 0:00:32]} 2. g3 {[%emt 0:00:11]} b5 {[%emt 0:01:45]} 3. Bg2 {
[%emt 0:00:08]} Bb7 {[%emt 0:00:17]} 4. O-O {[%emt 0:00:10]} e6 {[%emt 0:00:17]
} 5. d3 {[%emt 0:00:19]} c5 {[%emt 0:00:54]} 6. e4 {[%emt 0:00:10]} d6 {
[%emt 0:00:07]} 7. a4 {[%emt 0:01:10][%cal Ya2a4,Ya4a5,Ya5a6]} b4 {[%emt 0:02:
02]} 8. Nbd2 {[%emt 0:01:08]} Be7 {[%emt 0:07:17]} 9. Re1 {[%emt 0:00:00]} O-O
{[%emt 0:00:29]} 10. Nc4 {[%emt 0:02:06]} Nc6 {[%emt 0:18:39] A05: Réti
Opening: 1 Nf3 Nf6.} 11. a5 {[%emt 0:01:31] was the old line (11.e5).} Rc8 {
[%emt 0:02:29]} 12. a6 {[%emt 0:01:16]} Ba8 {[%emt 0:00:07]} 13. b3 {[%emt 0:
02:59]} d5 {[%emt 0:27:59]} 14. exd5 {[%emt 0:00:41]} Nxd5 {[%emt 0:00:00]} 15.
Bb2 {[%emt 0:00:17]} Bf6 {[%emt 0:00:35]} 16. Nfe5 {[%emt 0:02:05] [#]} Nxe5
$146 {[%emt 0:03:44]} ({Predecessor:} 16... Bxe5 17. Nxe5 Nd4 18. Nf3 Nb5 19.
Qd2 Ndc3 20. Bxc3 Nxc3 21. Qg5 f6 22. Qg4 Bd5 {½-½ (32) Schwellnus, G-Faust,
D freechess.de 2019}) 17. Nxe5 {[%emt 0:00:15]} Qc7 {[%emt 0:01:28]} 18. f4 {
[%emt 0:12:56]} Rfd8 {[%emt 0:01:07]} 19. Qe2 {[%emt 0:00:20]} h6 {[%emt 0:04:
14]} 20. Qh5 {[%emt 0:13:28]} Rd6 {[%emt 0:03:25]} 21. Ra2 {[%emt 0:00:00] The
position is equal.} Rf8 {[%emt 0:01:46]} 22. Rea1 {[%emt 0:00:48]} Qc8 {
[%emt 0:01:17]} 23. Ra5 {[%emt 0:01:41]} Qc7 {[%emt 0:10:04]} (23... Ne3 24.
Bxa8 Qxa8 25. Qe2 $16) 24. Rb5 {[%emt 0:06:05]} Qc8 {[%emt 0:01:25]} 25. Rba5 {
[%emt 0:08:39]} Qc7 {[%emt 0:02:28]} ({Don't take} 25... Ne3 26. Bxa8 Qxa8 27.
Qe2 $16) 26. Rb5 {[%emt 0:17:29]} Qc8 {[%emt 0:00:00]} 27. Rba5 {[%emt 0:00:17]
} Qc7 {[%emt 0:00:06]} ({Much less strong is} 27... Ne3 28. Bxa8 Qxa8 29. Qe2
$16) 28. Rb5 {[%emt 0:00:06]} Qc8 {[%emt 0:00:00]} 29. Rba5 {[%emt 0:00:04]}
Qc7 {[%emt 0:00:00] An interesting draw. Weighted Error Value: White=0.05 
(flawless) /Black=0.06 (flawless)} ({Don't do} 29... Ne3 30. Bxa8 Qxa8 31. Qe2
$16) 1/2-1/2

[Event "44th Chess Olympiad Open 2022"]
[Site "Chennai"]
[Date "2022.08.03"]
[Round "6.31"]
[White "Kojima, Shinya"]
[Black "Diaz Hollemaert, Nahuel"]
[Result "0-1"]
[WhiteElo "2346"]
[BlackElo "2425"]
[Annotator "TA"]
[PlyCount "96"]
[EventDate "2022.??.??"]
[TimeControl "60"]

{[%evp 9,96,39,33,47,43,35,54,43,42,32,61,33,43,38,41,36,41,-24,-24,-27,0,0,0,
0,0,0,0,0,0,0,0,0,0,0,4,6,10,0,0,0,8,-6,-5,-7,0,-8,0,-6,-6,-11,-12,-74,-8,-8,
-14,-14,-8,-71,-71,-71,-71,-71,-71,-71,-71,-277,0,-86,-8,-8,-16,-187,-180,-276,
-349,-337,-253,-240,-115,-1025,-1047,-943,-547,-29960,-29954,-12557,-1513,
-2137,-828]} 1. e4 {[%emt 0:00:06]} g6 {[%emt 0:06:04]} 2. d4 {[%emt 0:00:10]}
d6 {[%emt 0:02:19]} 3. Nc3 {[%emt 0:00:36]} a6 {[%emt 0:00:31]} 4. Be3 {
[%emt 0:00:37]} Nf6 {[%emt 0:04:51][%cal Yg8f6,Yf6h5,Yh5f4,Yf4e2]} 5. f3 {
[%emt 0:04:53]} b5 {[%emt 0:08:35]} 6. Qd2 {[%emt 0:00:33] B07: Pirc Defence:
Miscellaneous Systems.} Nbd7 {[%emt 0:01:06]} 7. g4 {[%emt 0:08:51][%cal Yg2g4,
Yg4g5]} Bb7 {[%emt 0:09:08]} 8. g5 {[%emt 0:11:46] White is slightly better.}
Nh5 {[%emt 0:00:05]} 9. Nge2 {[%emt 0:00:43] [#]} e5 $146 {[%emt 0:06:51]} ({
Predecessor:} 9... c5 10. Ng3 cxd4 11. Bxd4 e5 12. Be3 Nf4 13. h4 Qa5 14. a3
Rc8 15. O-O-O Rxc3 16. Qxc3 Qxc3 17. bxc3 {0-1 (40) Amonatov, F (2625)
-Timofeev,A (2664) Tomsk 2008}) 10. Ng3 {[%emt 0:16:24] Nxh5 is the strong
threat.} Nf4 {[%emt 0:04:25]} 11. Nce2 {[%emt 0:01:56]} ({Much weaker is} 11.
Bxf4 exf4 12. Qxf4 h6 $11) 11... Nxe2 {[%emt 0:10:14]} 12. Bxe2 {[%emt 0:00:00]
} h6 {[%emt 0:00:11]} 13. O-O-O {[%emt 0:14:58]} (13. a4 $14) 13... hxg5 $11 {
[%emt 0:02:38]} 14. dxe5 {[%emt 0:03:46]} Nxe5 {[%emt 0:03:57]} 15. Bxg5 {
[%emt 0:00:36]} Qxg5 {[%emt 0:00:21]} 16. Qxg5 {[%emt 0:00:07]} Bh6 {[%emt 0:
00:00]} 17. h4 {[%emt 0:02:23]} Bxg5+ {[%emt 0:12:09]} 18. hxg5 {[%emt 0:00:07]
} Ke7 {[%emt 0:00:27]} 19. Kd2 {[%emt 0:05:36]} d5 {[%emt 0:08:50]} 20. Ke3 {
[%emt 0:03:24]} Rxh1 {[%emt 0:02:02]} 21. Rxh1 {[%emt 0:01:07]} c5 {[%emt 0:00:
00]} 22. exd5 {[%emt 0:02:54]} Bxd5 {[%emt 0:00:03]} 23. a3 {[%emt 0:03:26]}
Rc8 {[%emt 0:04:08]} 24. Rh4 {[%emt 0:02:34]} c4 {[%emt 0:04:48]} 25. c3 {
[%emt 0:04:03]} Nd7 {[%emt 0:00:13]} 26. Rd4 {[%emt 0:03:13]} Nb6 {[%emt 0:00:
00]} 27. Ne4 {[%emt 0:02:18]} Be6 {[%emt 0:00:45]} 28. Nf6 {[%emt 0:00:53]} Na4
{[%emt 0:00:52]} 29. Rd2 {[%emt 0:00:26]} Rd8 {[%emt 0:00:15]} 30. Bd1 {
[%emt 0:04:17] [#]} (30. Rxd8 $11 Kxd8 31. Bd1 Nxb2 32. Bc2) 30... Nxb2 $1 {
[%emt 0:04:51]} 31. Rxd8 {[%emt 0:01:27]} Kxd8 $17 {[%emt 0:00:01] Endgame
KBN-KBN} 32. Bc2 {[%emt 0:00:01]} Ke7 {[%emt 0:01:05]} 33. Kd2 {[%emt 0:00:53]}
(33. Kd4 $11) 33... Bf5 {[%emt 0:00:17]} 34. Bxf5 {[%emt 0:00:00]} gxf5 {
[%emt 0:00:01] KN-KN} 35. Ke3 {[%emt 0:00:48]} Nd3 {[%emt 0:01:45]} 36. f4 {
[%emt 0:00:48] Inhibits Ne5.} Ne1 $1 {[%emt 0:00:35]} 37. Kd2 $2 {[%emt 0:00:
19]} (37. Nh5 $17) 37... Nd3 $2 {[%emt 0:01:09]} (37... Ng2 $19 38. Nh5 Kd6)
38. Nh5 {[%emt 0:00:28]} (38. Ke3 $11) 38... a5 {[%emt 0:00:42]} (38... Kd7 $1
$17) 39. Ke3 $11 {[%emt 0:00:27]} Ne1 {[%emt 0:00:17]} 40. Kd2 $2 {[%emt 0:00:
43]} (40. Ng3 $11 {and White has nothing to worry.}) 40... Ng2 $1 $19 {[%emt 0:
00:40]} 41. Ng7 {[%emt 0:06:16]} (41. Ke2 $142) 41... Nxf4 {[%emt 0:03:10]} 42.
Nxf5+ {[%emt 0:00:04] [#]} Ke6 $1 {[%emt 0:02:36]} 43. Nd4+ {[%emt 0:06:11] [#]
} Kd5 {[%emt 0:07:01]} (43... Ke5 $1 $19 {has better winning chances. And now .
..Ne6 would win.} 44. Nxb5 Ne6) 44. Nxb5 $2 {[%emt 0:00:00]} (44. Nf5 $17)
44... Ne6 {[%emt 0:00:24]} 45. Ke3 {[%emt 0:00:00]} Nxg5 {[%emt 0:10:35]} 46.
Kf4 {[%emt 0:02:23]} Ne6+ {[%emt 0:00:57]} 47. Kf5 {[%emt 0:00:08]} Kc5 {
[%emt 0:02:15]} (47... a4 $142 48. Na7 Kc5) 48. Na7 {[%emt 0:02:23]} Nc7 {
[%emt 0:00:39] Weighted Error Value: White=0.65/ Black=0.31} (48... a4 $142 49.
Ke4 Nc7) 0-1

[Event "44th Chess Olympiad Open 2022"]
[Site "Chennai"]
[Date "2022.08.03"]
[Round "6.31"]
[White "Vazquez Facundo"]
[Black "Averbukh, Alex"]
[Result "1-0"]
[WhiteElo "2336"]
[BlackElo "2155"]
[Annotator "TA"]
[PlyCount "135"]
[EventDate "2022.??.??"]
[TimeControl "60"]

{[%evp 9,135,34,41,15,14,6,23,29,62,34,61,75,56,0,16,25,43,38,38,0,27,16,37,33,
38,28,39,35,38,8,60,0,0,0,0,-5,0,0,0,-29,9,0,50,50,50,50,50,52,66,66,77,70,109,
106,190,187,173,173,244,220,269,253,349,331,654,641,812,809,789,764,689,582,
595,593,567,587,577,582,562,535,538,541,12831,12831,12831,12831,12832,12830,
12833,12833,6631,7536,2797,2176,12845,12843,12843,12843,12844,12845,12845,
12844,12844,12843,12843,12843,12843,12844,12845,12845,12845,12845,12846,12844,
12845,12844,12845,12845,12845,12846,12846,12847,27999,27999,27999,27999,27997,
27997]} 1. d4 {[%emt 0:00:04]} Nf6 {[%emt 0:00:06]} 2. c4 {[%emt 0:00:07]} e5 {
[%emt 0:00:08]} 3. dxe5 {[%emt 0:00:08]} Ng4 {[%emt 0:00:04]} 4. e3 {[%emt 0:
00:00]} Nxe5 {[%emt 0:00:12]} 5. f4 {[%emt 0:00:14]} Nec6 {[%emt 0:00:29]} 6.
Ne2 {[%emt 0:01:36] [#] A52: Budapest Gambit.} d6 $146 {[%emt 0:01:39]} ({
Predecessor:} 6... Bc5 7. Nec3 O-O 8. Bd3 Qh4+ 9. g3 Qh3 10. Kf2 Re8 11. Nd5
Na6 12. Nbc3 Ncb4 {0-1 (68) Grischuk,A (2745)-Ponkratov,P (2631) Chess.com INT
2022}) 7. Ng3 {[%emt 0:03:44]} g6 {[%emt 0:01:05]} 8. Bd2 {[%emt 0:02:43]
White has an edge.} h5 {[%emt 0:07:52]} 9. Bc3 {[%emt 0:02:21]} Rg8 {[%emt 0:
00:00]} 10. Bd3 {[%emt 0:07:38] White is more active.} Nd7 {[%emt 0:05:14]} 11.
Nd2 {[%emt 0:08:04]} (11. O-O $14) 11... Nc5 {[%emt 0:04:55]} 12. Nde4 {
[%emt 0:05:09]} Nxd3+ {[%emt 0:08:15]} 13. Qxd3 {[%emt 0:00:03] Strongly
threatening Nf6+.} Be7 {[%emt 0:00:13] Prevents Nf6+.} 14. O-O-O {[%emt 0:00:
00][%cal Ye4g5]} f5 {[%emt 0:13:53]} 15. Nd2 {[%emt 0:03:42]} h4 {[%emt 0:00:
00]} 16. Ne2 {[%emt 0:00:48]} Be6 {[%emt 0:00:55]} 17. Nd4 {[%emt 0:01:31]} Qd7
{[%emt 0:02:39]} 18. Nxe6 {[%emt 0:01:20]} Qxe6 {[%emt 0:00:07]} 19. Qd5 {
[%emt 0:00:17]} Kd7 {[%emt 0:02:31]} (19... Qxd5 $11 20. cxd5 Nb8) 20. Qxe6+ {
[%emt 0:02:07]} ({White should try} 20. e4 $14) 20... Kxe6 $11 {[%emt 0:00:07]}
21. Nf3 {[%emt 0:00:28]} Rae8 {[%emt 0:02:45]} 22. g3 {[%emt 0:05:37]} g5 {
[%emt 0:04:45]} 23. gxh4 {[%emt 0:02:05]} gxh4 {[%emt 0:00:27]} 24. Be1 {
[%emt 0:07:36]} Rg2 {[%emt 0:09:47]} 25. Bxh4 {[%emt 0:03:24]} Na5 {[%emt 0:00:
00]} (25... Bxh4 $11 26. Nxh4 Re2) 26. Bxe7 $14 {[%emt 0:06:19]} Rxe7 {[%emt 0:
00:00]} 27. Rd2 {[%emt 0:00:03]} Rxd2 {[%emt 0:00:54]} 28. Nxd2 {[%emt 0:00:06]
Endgame KRN-KRN} Kf6 {[%emt 0:00:25]} 29. Re1 {[%emt 0:01:26]} Nc6 {[%emt 0:01:
21] White now steadily converts the win.} 30. Nf3 {[%emt 0:00:48]} Nb4 {
[%emt 0:02:01] Hoping for ...Nd3+.} 31. Kd2 {[%emt 0:00:42] Against Nd3} Nxa2 {
[%emt 0:00:42]} (31... a5 $16 {was worth a try.}) 32. Ra1 $18 {[%emt 0:00:00]}
Nb4 {[%emt 0:00:10]} 33. Rxa7 {[%emt 0:01:36]} c5 {[%emt 0:04:42]} (33... b6
$142 34. Nd4 d5) 34. Ra8 {[%emt 0:02:24]} Rg7 {[%emt 0:05:04] [#]} 35. Ng5 $1 {
[%emt 0:01:30]} Rd7 {[%emt 0:01:55]} 36. h4 {[%emt 0:01:35]} Nc6 $2 {[%emt 0:
03:40]} (36... Kg7 37. h5 Nc6) 37. Rh8 {[%emt 0:01:08]} Rd8 {[%emt 0:00:00]}
38. Rh6+ {[%emt 0:00:22]} Kg7 {[%emt 0:00:35]} 39. Rh7+ {[%emt 0:00:07]} Kg8 {
[%emt 0:00:27]} 40. Rxb7 {[%emt 0:00:19]} Na5 {[%emt 0:00:32]} 41. Rb5 {
[%emt 0:35:11]} Nxc4+ {[%emt 0:04:25]} 42. Kd3 {[%emt 0:00:00]} d5 {[%emt 0:00:
00]} 43. b3 {[%emt 0:00:00]} Nd6 {[%emt 0:03:20]} 44. Rxc5 {[%emt 0:00:00]} Rb8
{[%emt 0:03:38]} 45. Kc2 {[%emt 0:00:00]} Rb5 {[%emt 0:02:36]} 46. Rxb5 {
[%emt 0:00:00]} Nxb5 {[%emt 0:00:03] KN-KN} 47. Kd3 {[%emt 0:00:00]} Kg7 {
[%emt 0:00:18]} 48. Ne6+ {[%emt 0:00:00]} Kg6 {[%emt 0:00:20]} 49. Nd4 {
[%emt 0:00:00]} Nd6 {[%emt 0:00:08]} 50. b4 {[%emt 0:00:00] And now b5 would
win.} Kh5 {[%emt 0:00:20]} 51. b5 {[%emt 0:00:00] Threatens to win with b6.}
Kxh4 {[%emt 0:00:28]} 52. b6 {[%emt 0:00:00]} Kg4 {[%emt 0:00:37] [#]} 53. Nb5
$1 {[%emt 0:00:00]} Nb7 {[%emt 0:01:53]} (53... Ne4 54. Kd4) 54. Kd4 {[%emt 0:
00:00]} Kf3 {[%emt 0:00:00]} 55. Nc3 {[%emt 0:00:00]} Na5 {[%emt 0:00:00]} 56.
Nxd5 {[%emt 0:00:00]} Nc6+ {[%emt 0:00:49]} 57. Kd3 {[%emt 0:00:00]} Na5 {
[%emt 0:00:35]} 58. Ne7 {[%emt 0:00:00]} Kg4 {[%emt 0:00:23]} 59. Kd4 {[%emt 0:
00:00]} Nb7 {[%emt 0:00:18]} 60. Kd5 {[%emt 0:00:00]} Na5 {[%emt 0:00:00]} 61.
Ke6 {[%emt 0:00:00]} Nb7 {[%emt 0:00:25]} 62. Kd7 {[%emt 0:00:00]} Kf3 {
[%emt 0:01:19]} 63. Kc7 {[%emt 0:00:00]} Nc5 {[%emt 0:00:12]} 64. Nxf5 {
[%emt 0:00:00]} Ke4 {[%emt 0:00:13]} 65. b7 {[%emt 0:00:00]} Kxf5 {[%emt 0:00:
00]} 66. b8=Q {[%emt 0:00:00] White mates.} ({And not} 66. e4+ Kxf4 67. b8=Q
Na6+ 68. Kd8+ Nxb8 $11) 66... Na6+ {[%emt 0:00:09]} 67. Kb7 {[%emt 0:00:00]}
Nxb8 {[%emt 0:00:07]} 68. Kxb8 {[%emt 0:00:00] Weighted Error Value: White=0.
12 (very precise) /Black=0.32} 1-0

[Event "44th Chess Olympiad Open 2022"]
[Site "Chennai"]
[Date "2022.08.03"]
[Round "6.31"]
[White "Kobayashi, Atsuhiko"]
[Black "Roselli Mailhe, Bernardo"]
[Result "1/2-1/2"]
[WhiteElo "2156"]
[BlackElo "2413"]
[Annotator "TA"]
[PlyCount "99"]
[EventDate "2022.??.??"]
[TimeControl "60"]

{[%evp 12,99,20,22,19,25,46,45,41,46,42,29,68,66,72,35,21,13,20,18,20,20,31,19,
16,0,9,24,31,21,17,0,0,0,0,0,0,0,19,18,26,18,16,22,19,18,27,31,31,27,29,-5,-2,
-1,19,0,0,0,0,0,0,0,0,0,0,0,0,0,0,0,0,0,0,0,0,0,0,0,0,0,0,0,0,0,0,0,0,0,0,0]} 
1. Nf3 {[%emt 0:00:04]} Nf6 {[%emt 0:00:13]} 2. g3 {[%emt 0:00:05]} g6 {
[%emt 0:00:09]} 3. b3 {[%emt 0:00:06]} Bg7 {[%emt 0:01:36]} 4. Bb2 {[%emt 0:00:
00]} d6 {[%emt 0:02:17]} 5. d4 {[%emt 0:00:05]} O-O {[%emt 0:03:23]} 6. Bg2 {
[%emt 0:00:05]} a5 {[%emt 0:00:05][%cal Ya7a5,Ya5a4,Ya4a3]} 7. O-O {[%emt 0:02:
03]} a4 {[%emt 0:05:40] A49:1 d4 Nf6 2 Nf3 g6 3 g3: Anti-King's Indian systems.
} 8. c4 {[%emt 0:03:37]} Nc6 {[%emt 0:05:06]} 9. Nc3 {[%emt 0:00:00]} a3 {
[%emt 0:07:12] White is slightly better.} 10. Bc1 {[%emt 0:00:06] [#]} Bg4 $146
{[%emt 0:00:06]} ({Predecessor:} 10... e5 11. e3 exd4 12. exd4 Bf5 13. Nb5 Ne4
14. Bxa3 Nc3 15. Nxc3 Rxa3 16. Qd2 Qd7 {1-0 (27) Meier,G (2621) -Rasulov,V 
(2478) Chess.com INT 2020}) 11. Ne1 {[%emt 0:03:10][%cal Yf3e1,Ye1c2,Yc2d4,
Yd4f5]} Qd7 {[%emt 0:09:15]} 12. Nc2 {[%emt 0:02:00]} Bh3 {[%emt 0:08:29]} 13.
Bxa3 {[%emt 0:05:02]} Bxg2 {[%emt 0:06:29]} 14. Kxg2 {[%emt 0:03:09]} d5 $1 {
[%emt 0:01:41] Against e4} 15. Qd3 {[%emt 0:08:49]} dxc4 {[%emt 0:05:48]} (
15... Rfd8 {looks sharper.} 16. e3 dxc4 17. Qxc4 Qf5) 16. Qxc4 {[%emt 0:11:56]}
Nxd4 {[%emt 0:02:33]} 17. Nxd4 {[%emt 0:05:14][%cal Yf1d1]} Rxa3 {[%emt 0:00:
27]} 18. Rad1 {[%emt 0:01:52]} Ra6 {[%emt 0:05:54]} 19. e4 {[%emt 0:04:24]} e5
{[%emt 0:10:10] [#]} 20. Nf5 {[%emt 0:01:54]} Qe6 {[%emt 0:01:02]} 21. Qxe6 {
[%emt 0:01:36]} Rxe6 {[%emt 0:02:39]} 22. Nxg7 {[%emt 0:03:14]} Kxg7 {[%emt 0:
00:11]} 23. f3 {[%emt 0:02:32]} Ra8 {[%emt 0:00:00]} 24. Rf2 {[%emt 0:00:58]}
Rea6 {[%emt 0:02:26]} 25. Rc2 {[%emt 0:03:52]} c6 {[%emt 0:02:14]} 26. Rdd2 {
[%emt 0:02:08]} Kf8 {[%emt 0:04:40]} 27. Na4 {[%emt 0:00:44]} Ke7 {[%emt 0:01:
44]} 28. Nc5 {[%emt 0:02:00][%csl Ya6,Yb7]} R6a7 {[%emt 0:00:48]} 29. g4 {
[%emt 0:03:38]} h6 {[%emt 0:01:34]} 30. h4 {[%emt 0:01:05]} Rd8 {[%emt 0:03:47]
} 31. g5 {[%emt 0:02:50]} hxg5 {[%emt 0:00:00] The position is equal.} 32. hxg5
{[%emt 0:00:04]} Nd7 {[%emt 0:01:40] [#] Threatens to win with ...Nxc5.} 33.
Nxd7 {[%emt 0:04:06]} Rxd7 {[%emt 0:00:05]} 34. Rxd7+ {[%emt 0:00:06]} Kxd7 $11
{[%emt 0:00:02] Endgame KR-KR} 35. Rd2+ {[%emt 0:01:14]} Ke6 {[%emt 0:01:35]}
36. Kg3 {[%emt 0:00:50]} Ra8 {[%emt 0:01:11]} 37. f4 {[%emt 0:06:34]} exf4+ {
[%emt 0:00:34]} 38. Kxf4 {[%emt 0:00:04]} Rh8 {[%emt 0:00:11]} 39. Kg4 {
[%emt 0:01:32]} Rh1 {[%emt 0:00:00]} 40. Rd4 {[%emt 0:01:29]} Rb1 {[%emt 0:01:
52]} 41. Rd8 {[%emt 0:33:03]} Rb2 {[%emt 0:05:11]} 42. Re8+ {[%emt 0:00:00]}
Kd7 {[%emt 0:05:52]} 43. Rf8 {[%emt 0:00:00]} Ke7 {[%emt 0:00:06]} 44. Rb8 {
[%emt 0:00:00]} b5 {[%emt 0:00:00]} 45. Rb7+ {[%emt 0:00:00]} Ke6 {[%emt 0:02:
35]} 46. Rc7 {[%emt 0:00:00]} Rc2 {[%emt 0:03:37]} 47. a4 {[%emt 0:00:00]} bxa4
{[%emt 0:06:25]} 48. bxa4 {[%emt 0:00:00]} Rc4 {[%emt 0:00:16][%csl Ya4,Ye4]}
49. Kf4 {[%emt 0:00:00]} Rxa4 {[%emt 0:01:07]} 50. Rxc6+ {[%emt 0:00:00]
Weighted Error Value: White=0.04 (flawless) /Black=0.04 (flawless)} 1/2-1/2